Workbook

Sheet البيانات
A1: رقم العميل | B1: اسم العميل | C1: رقم الهاتف | D1: العنوان | E1: اسم المندوب
A2: 1 | B2: احمد | C2: 51613 | D2: الشرقية | E2: محمود
A3: 2 | B3: محمد | C3: 131313 | D3: البحيره | E3: حذيفه
A4: 3 | B4: حسام | C4: 56451565 | D4: قنا | E4: علي
A5: 4 | B5: علي | C5: 146546515 | D5: المنوفية | E5: حذيفه
A6: 5 | B6: خالد | C6: 1564146 | D6: دمنهور | E6: علي

Sheet الشيت الرئيسي
G6: كود العميل
D7: حساب عميل | G7: =IFERROR(INDEX(البيانات!$A$2:$A$320,MATCH($C$9,البيانات!$B$2:$B$320,0)),"") -> 5
B9: اسم العميل | C9: خالد | E9: تليفون | G9: =IFERROR(VLOOKUP(G7,البيانات!$A$1:$C$6,3,0),"") -> 1564146
B10: اسم المنشاة | E10: مدير مسئول
B11: العنوان | C11: =IFERROR(VLOOKUP(G7,البيانات!$A$1:$D$6,4,0),"") -> دمنهور | E11: مندوب مبيعات | G11: =IFERROR(VLOOKUP(G7,البيانات!$A$1:$E$6,5,0),"") -> علي
B14: م | C14: التاريخ | D14: رقم الفاتورة | E14: قيمة الفاتورة | F14: رصيد سابق | G14: المدفوع | H14: رصيد متبقي | I14: ملاحظات
B15: 1 | C15: 2018-06-01 | D15: 120 | E15: 570 | F15: 201 | G15: 230 | H15: 541
B16: 2 | H16: 0
B17: 3 | H17: 0
B18: 4 | H18: 0
B19: 5 | H19: 0
B20: 6 | H20: 0
B21: 7 | H21: 0
B22: 8 | H22: 0
B23: 9 | H23: 0
B24: 10 | H24: 0
B25: 11 | H25: 0
B26: 12 | H26: 0
B27: 13 | H27: 0
B28: 14 | H28: 0
B29: 15 | H29: 0
B30: 16 | H30: 0
B31: 17 | H31: 0
B32: 18 | H32: 0
B33: 19 | H33: 0
B34: 20 | H34: 0
B35: 21 | H35: 0
B36: 22 | H36: 0
B37: 23 | H37: 0
B38: 24 | H38: 0
B39: 25 | H39: 0
B40: 26 | H40: 0
B41: 27 | H41: 0
B42: 28 | H42: 0
B43: 29 | H43: 0
B44: 30 | H44: 0
B45: الاجمالي | E45: 570 | G45: 230

Sheet احمد
G6: كود العميل
D7: حساب عميل | G7: 1
B9: اسم العميل | C9: =IFERROR(VLOOKUP(G7,البيانات!$A$1:$B$6,2,0),"") -> احمد | E9: تليفون | G9: =IFERROR(VLOOKUP(G7,البيانات!$A$1:$C$6,3,0),"") -> 51613
B10: اسم المنشاة | E10: مدير مسئول
B11: العنوان | C11: =IFERROR(VLOOKUP(G7,البيانات!$A$1:$D$6,4,0),"") -> الشرقية | E11: مندوب مبيعات | G11: =IFERROR(VLOOKUP(G7,البيانات!$A$1:$E$6,5,0),"") -> محمود
B14: م | C14: التاريخ | D14: رقم الفاتورة | E14: قيمة الفاتورة | F14: رصيد سابق | G14: المدفوع | H14: رصيد متبقي | I14: ملاحظات
B15: 1 | C15: 2018-01-01 | D15: 150 | E15: 5000 | F15: 100 | G15: 3500 | H15: =E15+F15-G15 -> 1600
B16: 2 | H16: =E16+F16-G16 -> 0
B17: 3 | H17: 0
B18: 4 | H18: 0
B19: 5 | H19: 0
B20: 6 | H20: 0
B21: 7 | H21: 0
B22: 8 | H22: 0
B23: 9 | H23: 0
B24: 10 | H24: 0
B25: 11 | H25: 0
B26: 12 | H26: 0
B27: 13 | H27: 0
B28: 14 | H28: 0
B29: 15 | H29: 0
B30: 16 | H30: 0
B31: 17 | H31: 0
B32: 18 | H32: 0
B33: 19 | H33: 0
B34: 20 | H34: 0
B35: 21 | H35: 0
B36: 22 | H36: 0
B37: 23 | H37: 0
B38: 24 | H38: 0
B39: 25 | H39: 0
B40: 26 | H40: 0
B41: 27 | H41: 0
B42: 28 | H42: 0
B43: 29 | H43: 0
B44: 30 | H44: 0
B45: الاجمالي | E45: =SUM(E15:E44) -> 5000 | G45: =SUM(G15:G44) -> 3500

Sheet محمد
G6: كود العميل
D7: حساب عميل | G7: 2
B9: اسم العميل | C9: =IFERROR(VLOOKUP(G7,البيانات!$A$1:$B$6,2,0),"") -> محمد | E9: تليفون | G9: =IFERROR(VLOOKUP(G7,البيانات!$A$1:$C$6,3,0),"") -> 131313
B10: اسم المنشاة | E10: مدير مسئول
B11: العنوان | C11: =IFERROR(VLOOKUP(G7,البيانات!$A$1:$D$6,4,0),"") -> البحيره | E11: مندوب مبيعات | G11: =IFERROR(VLOOKUP(G7,البيانات!$A$1:$E$6,5,0),"") -> حذيفه
B14: م | C14: التاريخ | D14: رقم الفاتورة | E14: قيمة الفاتورة | F14: رصيد سابق | G14: المدفوع | H14: رصيد متبقي | I14: ملاحظات
B15: 1 | C15: 00:00:00 | D15: JJHHH | E15: 500 | F15: 10 | G15: 20 | H15: =E15+F15-G15 -> 490
B16: 2 | H16: =E16+F16-G16 -> 0
B17: 3 | H17: 0
B18: 4 | H18: 0
B19: 5 | H19: 0
B20: 6 | H20: 0
B21: 7 | H21: 0
B22: 8 | H22: 0
B23: 9 | H23: 0
B24: 10 | H24: 0
B25: 11 | H25: 0
B26: 12 | H26: 0
B27: 13 | H27: 0
B28: 14 | H28: 0
B29: 15 | H29: 0
B30: 16 | H30: 0
B31: 17 | H31: 0
B32: 18 | H32: 0
B33: 19 | H33: 0
B34: 20 | H34: 0
B35: 21 | H35: 0
B36: 22 | H36: 0
B37: 23 | H37: 0
B38: 24 | H38: 0
B39: 25 | H39: 0
B40: 26 | H40: 0
B41: 27 | H41: 0
B42: 28 | H42: 0
B43: 29 | H43: 0
B44: 30 | H44: 0
B45: الاجمالي | E45: =SUM(E15:E44) -> 500 | G45: =SUM(G15:G44) -> 20

Sheet حسام
G6: كود العميل
D7: حساب عميل | G7: 3
B9: اسم العميل | C9: =IFERROR(VLOOKUP(G7,البيانات!$A$1:$B$6,2,0),"") -> حسام | E9: تليفون | G9: =IFERROR(VLOOKUP(G7,البيانات!$A$1:$C$6,3,0),"") -> 56451565
B10: اسم المنشاة | E10: مدير مسئول
B11: العنوان | C11: =IFERROR(VLOOKUP(G7,البيانات!$A$1:$D$6,4,0),"") -> قنا | E11: مندوب مبيعات | G11: =IFERROR(VLOOKUP(G7,البيانات!$A$1:$E$6,5,0),"") -> علي
B14: م | C14: التاريخ | D14: رقم الفاتورة | E14: قيمة الفاتورة | F14: رصيد سابق | G14: المدفوع | H14: رصيد متبقي | I14: ملاحظات
B15: 1 | H15: =E15+F15-G15 -> 0
B16: 2 | H16: =E16+F16-G16 -> 0
B17: 3 | H17: 0
B18: 4 | H18: 0
B19: 5 | H19: 0
B20: 6 | H20: 0
B21: 7 | H21: 0
B22: 8 | H22: 0
B23: 9 | H23: 0
B24: 10 | H24: 0
B25: 11 | H25: 0
B26: 12 | H26: 0
B27: 13 | H27: 0
B28: 14 | H28: 0
B29: 15 | H29: 0
B30: 16 | H30: 0
B31: 17 | H31: 0
B32: 18 | H32: 0
B33: 19 | H33: 0
B34: 20 | H34: 0
B35: 21 | H35: 0
B36: 22 | H36: 0
B37: 23 | H37: 0
B38: 24 | H38: 0
B39: 25 | H39: 0
B40: 26 | H40: 0
B41: 27 | H41: 0
B42: 28 | H42: 0
B43: 29 | H43: 0
B44: 30 | H44: 0
B45: الاجمالي | E45: =SUM(E15:E44) -> 0 | G45: =SUM(G15:G44) -> 0

Sheet علي
G6: كود العميل
D7: حساب عميل | G7: 4
B9: اسم العميل | C9: =IFERROR(VLOOKUP(G7,البيانات!$A$1:$B$6,2,0),"") -> علي | E9: تليفون | G9: =IFERROR(VLOOKUP(G7,البيانات!$A$1:$C$6,3,0),"") -> 146546515
B10: اسم المنشاة | E10: مدير مسئول
B11: العنوان | C11: =IFERROR(VLOOKUP(G7,البيانات!$A$1:$D$6,4,0),"") -> المنوفية | E11: مندوب مبيعات | G11: =IFERROR(VLOOKUP(G7,البيانات!$A$1:$E$6,5,0),"") -> حذيفه
B14: م | C14: التاريخ | D14: رقم الفاتورة | E14: قيمة الفاتورة | F14: رصيد سابق | G14: المدفوع | H14: رصيد متبقي | I14: ملاحظات
B15: 1 | H15: =E15+F15-G15 -> 0
B16: 2 | H16: =E16+F16-G16 -> 0
B17: 3 | H17: 0
B18: 4 | H18: 0
B19: 5 | H19: 0
B20: 6 | H20: 0
B21: 7 | H21: 0
B22: 8 | H22: 0
B23: 9 | H23: 0
B24: 10 | H24: 0
B25: 11 | H25: 0
B26: 12 | H26: 0
B27: 13 | H27: 0
B28: 14 | H28: 0
B29: 15 | H29: 0
B30: 16 | H30: 0
B31: 17 | H31: 0
B32: 18 | H32: 0
B33: 19 | H33: 0
B34: 20 | H34: 0
B35: 21 | H35: 0
B36: 22 | H36: 0
B37: 23 | H37: 0
B38: 24 | H38: 0
B39: 25 | H39: 0
B40: 26 | H40: 0
B41: 27 | H41: 0
B42: 28 | H42: 0
B43: 29 | H43: 0
B44: 30 | H44: 0
B45: الاجمالي | E45: =SUM(E15:E44) -> 0 | G45: =SUM(G15:G44) -> 0

Sheet خالد
G6: كود العميل
D7: حساب عميل | G7: 5
B9: اسم العميل | C9: =IFERROR(VLOOKUP(G7,البيانات!$A$1:$B$6,2,0),"") -> خالد | E9: تليفون | G9: =IFERROR(VLOOKUP(G7,البيانات!$A$1:$C$6,3,0),"") -> 1564146
B10: اسم المنشاة | E10: مدير مسئول
B11: العنوان | C11: =IFERROR(VLOOKUP(G7,البيانات!$A$1:$D$6,4,0),"") -> دمنهور | E11: مندوب مبيعات | G11: =IFERROR(VLOOKUP(G7,البيانات!$A$1:$E$6,5,0),"") -> علي
B14: م | C14: التاريخ | D14: رقم الفاتورة | E14: قيمة الفاتورة | F14: رصيد سابق | G14: المدفوع | H14: رصيد متبقي | I14: ملاحظات
B15: 1 | C15: 2018-06-01 | D15: 120 | E15: 570 | F15: 201 | G15: 230 | H15: =E15+F15-G15 -> 541
B16: 2 | H16: =E16+F16-G16 -> 0
B17: 3 | H17: 0
B18: 4 | H18: 0
B19: 5 | H19: 0
B20: 6 | H20: 0
B21: 7 | H21: 0
B22: 8 | H22: 0
B23: 9 | H23: 0
B24: 10 | H24: 0
B25: 11 | H25: 0
B26: 12 | H26: 0
B27: 13 | H27: 0
B28: 14 | H28: 0
B29: 15 | H29: 0
B30: 16 | H30: 0
B31: 17 | H31: 0
B32: 18 | H32: 0
B33: 19 | H33: 0
B34: 20 | H34: 0
B35: 21 | H35: 0
B36: 22 | H36: 0
B37: 23 | H37: 0
B38: 24 | H38: 0
B39: 25 | H39: 0
B40: 26 | H40: 0
B41: 27 | H41: 0
B42: 28 | H42: 0
B43: 29 | H43: 0
B44: 30 | H44: 0
B45: الاجمالي | E45: =SUM(E15:E44) -> 570 | G45: =SUM(G15:G44) -> 230
